[Event "Open NK Rapid 2025 bord 26-50"]
[Site "Helmond, Netherlands"]
[Date "2025.05.03"]
[Round "5.15"]
[White "Van Baaren, Joris"]
[Black "Schleipfenbauer, Bent"]
[Result "0-1"]
[TimeControl "15 min +5 sec increment"]
[WhiteFideId "40108929"]
[BlackFideId "1048759"]
[WhiteElo "1796"]
[BlackElo "1992"]

1. e4 {[%clk 00:15:07]} {[%emt 00:00:03]} c5 {[%clk 00:13:46]} {[%emt
00:01:24]} 2. Nf3 {[%clk 00:15:10]} {[%emt 00:00:02]} Nc6 {[%clk 00:13:51]} 3.
Bb5 {[%clk 00:15:14]} {[%emt 00:00:01]} e6 {[%clk 00:13:55]} {[%emt 00:00:01]}
4. c3 {[%clk 00:15:18]} Nge7 {[%clk 00:13:59]} {[%emt 00:00:02]} 5. O-O {[%clk
00:15:21]} {[%emt 00:00:01]} a6 {[%clk 00:13:54]} {[%emt 00:00:11]} 6. Ba4
{[%clk 00:15:25]} b5 {[%clk 00:13:54]} {[%emt 00:00:05]} 7. Bc2 {[%clk
00:15:28]} {[%emt 00:00:01]} d5 {[%clk 00:13:53]} {[%emt 00:00:06]} 8. d4
{[%clk 00:15:25]} {[%emt 00:00:08]} dxe4 {[%clk 00:13:21]} {[%emt 00:00:37]} 9.
Bxe4 {[%clk 00:15:27]} {[%emt 00:00:03]} Nd5 {[%clk 00:13:23]} {[%emt
00:00:04]} 10. Re1 {[%clk 00:15:21]} {[%emt 00:00:11]} Bb7 {[%clk 00:13:08]}
{[%emt 00:00:19]} 11. dxc5 {[%clk 00:15:20]} {[%emt 00:00:07]} Nf6 {[%clk
00:12:43]} {[%emt 00:00:29]} 12. Qxd8+ {[%clk 00:14:52]} {[%emt 00:00:33]} Rxd8
{[%clk 00:12:47]} {[%emt 00:00:01]} 13. Bxc6+ {[%clk 00:14:56]} {[%emt
00:00:02]} Bxc6 {[%clk 00:12:50]} 14. b4 {[%clk 00:14:51]} {[%emt 00:00:10]}
Bxf3 {[%clk 00:12:20]} {[%emt 00:00:35]} 15. gxf3 {[%clk 00:14:54]} {[%emt
00:00:02]} Nd5 {[%clk 00:10:27]} {[%emt 00:01:59]} 16. a4 {[%clk 00:14:46]}
{[%emt 00:00:13]} Be7 {[%clk 00:09:45]} {[%emt 00:00:46]} 17. Bb2 {[%clk
00:14:31]} {[%emt 00:00:20]} Nf4 {[%clk 00:06:43]} {[%emt 00:03:07]} 18. axb5
{[%clk 00:13:46]} {[%emt 00:00:51]} axb5 {[%clk 00:06:37]} {[%emt 00:00:11]} 19.
Na3 {[%clk 00:12:53]} {[%emt 00:00:57]} Bh4 {[%clk 00:05:46]} {[%emt 00:00:57]}
20. Re4 {[%clk 00:11:26]} {[%emt 00:01:31]} g5 {[%clk 00:03:59]} {[%emt
00:01:51]} 21. Nxb5 {[%clk 00:10:41]} {[%emt 00:00:52]} Rd2 {[%clk 00:03:16]}
{[%emt 00:00:48]} 22. Nd6+ {[%clk 00:10:06]} {[%emt 00:00:39]} Ke7 {[%clk
00:02:05]} {[%emt 00:01:16]} 23. Nf5+ {[%clk 00:10:06]} {[%emt 00:00:05]} Kf6
{[%clk 00:01:31]} {[%emt 00:00:39]} 24. Nxh4 {[%clk 00:09:54]} {[%emt
00:00:18]} Rxb2 {[%clk 00:01:21]} {[%emt 00:00:15]} 25. Rae1 {[%clk 00:04:28]}
{[%emt 00:05:31]} Rd8 {[%clk 00:00:55]} {[%emt 00:00:31]} 26. Rxf4+ {[%clk
00:03:55]} {[%emt 00:00:37]} gxf4 {[%clk 00:00:59]} {[%emt 00:00:02]} 27. Ng2
{[%clk 00:03:56]} {[%emt 00:00:03]} e5 {[%clk 00:00:58]} {[%emt 00:00:06]} 28.
Rf1 {[%clk 00:03:45]} {[%emt 00:00:16]} Rc2 {[%clk 00:00:54]} {[%emt 00:00:09]}
29. Ra1 {[%clk 00:03:15]} {[%emt 00:00:35]} Rxc3 {[%clk 00:00:48]} {[%emt
00:00:12]} 30. Ra6+ {[%clk 00:03:14]} {[%emt 00:00:05]} Kf5 {[%clk 00:00:43]}
{[%emt 00:00:09]} 31. Ra1 {[%clk 00:02:51]} {[%emt 00:00:29]} Rb3 {[%clk
00:00:40]} {[%emt 00:00:07]} 32. Rc1 {[%clk 00:02:51]} {[%emt 00:00:05]} Rxb4
{[%clk 00:00:36]} {[%emt 00:00:10]} 33. Ne1 {[%clk 00:02:50]} {[%emt 00:00:07]}
Rbd4 {[%clk 00:00:27]} {[%emt 00:00:13]} 34. Kf1 {[%clk 00:02:37]} {[%emt
00:00:19]} Rc8 {[%clk 00:00:20]} {[%emt 00:00:12]} 35. Nc2 {[%clk 00:02:36]}
{[%emt 00:00:05]} Rd5 {[%clk 00:00:11]} {[%emt 00:00:14]} 36. Nb4 {[%clk
00:01:57]} {[%emt 00:00:45]} Rdxc5 {[%clk 00:00:10]} {[%emt 00:00:06]} 37. Re1
{[%clk 00:01:54]} {[%emt 00:00:07]} Rc1 {[%clk 00:00:14]} {[%emt 00:00:01]} 38.
Nd5 {[%clk 00:01:54]} {[%emt 00:00:06]} Rxe1+ {[%clk 00:00:17]} {[%emt
00:00:02]} 39. Kxe1 {[%clk 00:01:57]} {[%emt 00:00:01]} Rc1+ {[%clk 00:00:20]}
{[%emt 00:00:02]} 40. Ke2 {[%clk 00:01:55]} {[%emt 00:00:08]} Rh1 {[%clk
00:00:24]} {[%emt 00:00:01]} 41. Ne7+ {[%clk 00:01:53]} {[%emt 00:00:06]} Ke6
{[%clk 00:00:26]} {[%emt 00:00:03]} 42. Nc6 {[%clk 00:01:52]} {[%emt 00:00:07]}
Rxh2 {[%clk 00:00:30]} {[%emt 00:00:01]} 43. Nd8+ {[%clk 00:01:49]} {[%emt
00:00:08]} Ke7 {[%clk 00:00:29]} {[%emt 00:00:05]} 44. Nc6+ {[%clk 00:01:53]}
{[%emt 00:00:01]} Kd6 {[%clk 00:00:33]} 45. Nd8 {[%clk 00:01:57]} {[%emt
00:00:01]} f6 {[%clk 00:00:32]} {[%emt 00:00:07]} 46. Nf7+ {[%clk 00:01:55]}
{[%emt 00:00:06]} Ke7 {[%clk 00:00:34]} {[%emt 00:00:03]} 47. Nh8 {[%clk
00:01:33]} {[%emt 00:00:28]} Rg2 {[%clk 00:00:37]} {[%emt 00:00:01]} 0-1

[Event "Open NK Rapid 2025 bord 26-50"]
[Site "Helmond, Netherlands"]
[Date "2025.05.03"]
[Round "5.16"]
[White "Wilming, Auke"]
[Black "Rogozyanskiy, Alexander"]
[Result "1/2-1/2"]
[TimeControl "15 min +5 sec increment"]
[WhiteFideId "40101096"]
[BlackFideId "1092138"]
[WhiteElo "1962"]
[BlackElo "1726"]

1. e4 {[%clk 00:15:07]} {[%emt 00:00:02]} c5 {[%clk 00:15:09]} {[%emt
00:00:02]} 2. Nf3 {[%clk 00:15:11]} {[%emt 00:00:01]} e6 {[%clk 00:15:12]}
{[%emt 00:00:02]} 3. d4 {[%clk 00:15:11]} {[%emt 00:00:04]} cxd4 {[%clk
00:15:16]} {[%emt 00:00:02]} 4. Nxd4 {[%clk 00:15:15]} {[%emt 00:00:02]} a6
{[%clk 00:15:19]} 5. Nc3 {[%clk 00:15:18]} {[%emt 00:00:01]} Qc7 {[%clk
00:15:22]} {[%emt 00:00:03]} 6. a3 {[%clk 00:15:12]} {[%emt 00:00:11]} Nf6
{[%clk 00:15:20]} {[%emt 00:00:07]} 7. Bd3 {[%clk 00:15:04]} {[%emt 00:00:13]}
Be7 {[%clk 00:15:06]} {[%emt 00:00:19]} 8. O-O {[%clk 00:15:02]} {[%emt
00:00:07]} O-O {[%clk 00:15:09]} {[%emt 00:00:02]} 9. Be3 {[%clk 00:14:49]}
{[%emt 00:00:18]} d6 {[%clk 00:14:57]} {[%emt 00:00:17]} 10. f4 {[%clk
00:14:14]} {[%emt 00:00:40]} Nbd7 {[%clk 00:14:52]} {[%emt 00:00:10]} 11. g4
{[%clk 00:13:30]} {[%emt 00:00:49]} Nc5 {[%clk 00:14:06]} {[%emt 00:00:52]} 12.
g5 {[%clk 00:13:25]} {[%emt 00:00:09]} Nfd7 {[%clk 00:14:08]} {[%emt 00:00:02]}
13. f5 {[%clk 00:13:03]} {[%emt 00:00:28]} Qd8 {[%clk 00:11:46]} {[%emt
00:02:27]} 14. Qh5 {[%clk 00:12:01]} {[%emt 00:01:06]} Ne5 {[%clk 00:09:54]}
{[%emt 00:01:58]} 15. Qh4 {[%clk 00:09:59]} {[%emt 00:02:06]} f6 {[%clk
00:05:25]} {[%emt 00:04:35]} 16. fxe6 {[%clk 00:07:34]} {[%emt 00:02:31]} Nxe6
{[%clk 00:04:38]} {[%emt 00:00:51]} 17. Nf5 {[%clk 00:05:40]} {[%emt 00:01:59]}
Nxg5 {[%clk 00:04:18]} {[%emt 00:00:25]} 18. Nxe7+ {[%clk 00:04:54]} {[%emt
00:00:51]} Qxe7 {[%clk 00:04:21]} {[%emt 00:00:02]} 19. Bxg5 {[%clk 00:04:53]}
{[%emt 00:00:06]} fxg5 {[%clk 00:04:16]} {[%emt 00:00:11]} 20. Nd5 {[%clk
00:04:28]} {[%emt 00:00:29]} Qd8 {[%clk 00:03:54]} {[%emt 00:00:27]} 21. Qg3
{[%clk 00:03:55]} {[%emt 00:00:37]} Be6 {[%clk 00:03:15]} {[%emt 00:00:45]} 22.
Rxf8+ {[%clk 00:03:57]} {[%emt 00:00:03]} Qxf8 {[%clk 00:03:18]} {[%emt
00:00:01]} 23. Rf1 {[%clk 00:04:00]} {[%emt 00:00:02]} Qd8 {[%clk 00:03:10]}
{[%emt 00:00:14]} 24. Ne3 {[%clk 00:03:39]} {[%emt 00:00:26]} Qe7 {[%clk
00:03:01]} {[%emt 00:00:14]} 25. Be2 {[%clk 00:02:55]} {[%emt 00:00:49]} Rf8
{[%clk 00:02:27]} {[%emt 00:00:40]} 26. Rxf8+ {[%clk 00:02:12]} {[%emt
00:00:47]} Kxf8 {[%clk 00:02:31]} {[%emt 00:00:01]} 27. Bg4 {[%clk 00:02:02]}
{[%emt 00:00:16]} Bxg4 {[%clk 00:01:56]} {[%emt 00:00:39]} 28. Nxg4 {[%clk
00:02:02]} {[%emt 00:00:05]} Nxg4 {[%clk 00:01:49]} {[%emt 00:00:12]} 29. Qxg4
{[%clk 00:02:05]} {[%emt 00:00:01]} g6 {[%clk 00:01:44]} {[%emt 00:00:10]} 30.
Qc8+ {[%clk 00:01:38]} {[%emt 00:00:33]} Kf7 {[%clk 00:01:38]} {[%emt
00:00:10]} 31. Qc4+ {[%clk 00:01:41]} {[%emt 00:00:04]} Kg7 {[%clk 00:01:37]}
{[%emt 00:00:05]} 32. Qc3+ {[%clk 00:01:28]} {[%emt 00:00:18]} Kh6 {[%clk
00:01:10]} {[%emt 00:00:30]} 33. Qh3+ {[%clk 00:01:31]} {[%emt 00:00:03]} Kg7
{[%clk 00:01:15]} {[%emt 00:00:01]} 34. Qc3+ {[%clk 00:01:35]} Kg8 {[%clk
00:01:11]} {[%emt 00:00:07]} 35. Qc4+ {[%clk 00:01:25]} {[%emt 00:00:17]} Kg7
{[%clk 00:00:35]} {[%emt 00:00:41]} 36. Qc3+ {[%clk 00:01:27]} {[%emt
00:00:03]} 1/2-1/2

[Event "Open NK Rapid 2025 bord 26-50"]
[Site "Helmond, Netherlands"]
[Date "2025.05.03"]
[Round "5.17"]
[White "Moskalets, Sofiia"]
[Black "Gorny, Wiktor"]
[Result "1-0"]
[TimeControl "15 min +5 sec increment"]
[WhiteFideId "34144293"]
[BlackFideId "40110680"]
[WhiteElo "1938"]
[BlackElo "1693"]

1. e4 {[%clk 00:15:07]} {[%emt 00:00:02]} c5 {[%clk 00:15:08]} {[%emt
00:00:02]} 2. Nf3 {[%clk 00:15:11]} {[%emt 00:00:02]} e6 {[%clk 00:15:12]}
{[%emt 00:00:01]} 3. b3 {[%clk 00:15:14]} {[%emt 00:00:01]} Nc6 {[%clk
00:15:13]} {[%emt 00:00:04]} 4. Bb2 {[%clk 00:15:17]} {[%emt 00:00:02]} Nf6
{[%clk 00:15:07]} {[%emt 00:00:12]} 5. e5 {[%clk 00:15:20]} {[%emt 00:00:02]}
Nd5 {[%clk 00:14:58]} {[%emt 00:00:14]} 6. g3 {[%clk 00:15:23]} {[%emt
00:00:02]} Be7 {[%clk 00:14:01]} {[%emt 00:01:01]} 7. Bg2 {[%clk 00:15:25]}
{[%emt 00:00:03]} O-O {[%clk 00:13:55]} {[%emt 00:00:11]} 8. O-O {[%clk
00:15:27]} {[%emt 00:00:03]} b5 {[%clk 00:13:39]} {[%emt 00:00:22]} 9. d4
{[%clk 00:14:08]} {[%emt 00:01:23]} Ba6 {[%clk 00:13:12]} {[%emt 00:00:32]} 10.
Re1 {[%clk 00:13:30]} {[%emt 00:00:43]} c4 {[%clk 00:12:44]} {[%emt 00:00:33]}
11. Nfd2 {[%clk 00:10:07]} {[%emt 00:03:28]} Qa5 {[%clk 00:10:31]} {[%emt
00:02:18]} 12. Ne4 {[%clk 00:07:12]} {[%emt 00:03:00]} Bb4 {[%clk 00:07:25]}
{[%emt 00:03:11]} 13. c3 {[%clk 00:07:01]} {[%emt 00:00:16]} Be7 {[%clk
00:07:10]} {[%emt 00:00:20]} 14. b4 {[%clk 00:05:47]} {[%emt 00:01:20]} Qb6
{[%clk 00:06:06]} {[%emt 00:01:08]} 15. Nc5 {[%clk 00:04:41]} {[%emt 00:01:12]}
Bc8 {[%clk 00:05:14]} {[%emt 00:00:56]} 16. a4 {[%clk 00:04:21]} {[%emt
00:00:26]} a5 {[%clk 00:04:48]} {[%emt 00:00:31]} 17. axb5 {[%clk 00:04:16]}
{[%emt 00:00:10]} Qxb5 {[%clk 00:04:27]} {[%emt 00:00:26]} 18. Na3 {[%clk
00:04:10]} {[%emt 00:00:11]} Qb8 {[%clk 00:04:02]} {[%emt 00:00:29]} 19. b5
{[%clk 00:02:42]} {[%emt 00:01:34]} Bxc5 {[%clk 00:03:14]} {[%emt 00:00:53]} 20.
dxc5 {[%clk 00:02:27]} {[%emt 00:00:20]} Nxe5 {[%clk 00:02:45]} {[%emt
00:00:33]} 21. Rxe5 {[%clk 00:01:02]} {[%emt 00:01:30]} Qxe5 {[%clk 00:02:39]}
{[%emt 00:00:12]} 22. Nxc4 {[%clk 00:01:05]} {[%emt 00:00:01]} Qc7 {[%clk
00:01:58]} {[%emt 00:00:46]} 23. Qd4 {[%clk 00:00:46]} {[%emt 00:00:25]} Bb7
{[%clk 00:01:46]} {[%emt 00:00:16]} 24. Nd6 {[%clk 00:00:44]} {[%emt 00:00:07]}
Rab8 {[%clk 00:01:11]} {[%emt 00:00:41]} 25. Nxb7 {[%clk 00:00:47]} {[%emt
00:00:01]} Rxb7 {[%clk 00:01:13]} {[%emt 00:00:03]} 26. c4 {[%clk 00:00:51]}
{[%emt 00:00:02]} Nf6 {[%clk 00:01:02]} {[%emt 00:00:15]} 27. Bxb7 {[%clk
00:00:47]} {[%emt 00:00:10]} Qxb7 {[%clk 00:01:05]} {[%emt 00:00:02]} 28. Rxa5
{[%clk 00:00:38]} {[%emt 00:00:14]} Qc7 {[%clk 00:00:26]} {[%emt 00:00:43]} 29.
b6 {[%clk 00:00:39]} {[%emt 00:00:05]} Qb8 {[%clk 00:00:14]} {[%emt 00:00:16]}
30. Qe5 {[%clk 00:00:42]} {[%emt 00:00:02]} Qb7 {[%clk 00:00:10]} {[%emt
00:00:10]} 31. Ra7 {[%clk 00:00:27]} {[%emt 00:00:20]} Qc6 {[%clk 00:00:12]}
{[%emt 00:00:03]} 32. Rc7 {[%clk 00:00:25]} {[%emt 00:00:07]} Qa8 {[%clk
00:00:12]} {[%emt 00:00:05]} 33. b7 {[%clk 00:00:23]} {[%emt 00:00:07]} Qb8
{[%clk 00:00:11]} {[%emt 00:00:06]} 34. g4 {[%clk 00:00:13]} {[%emt 00:00:15]}
h6 {[%clk 00:00:08]} {[%emt 00:00:08]} 35. h4 {[%clk 00:00:17]} {[%emt
00:00:01]} Kh7 {[%clk 00:00:11]} {[%emt 00:00:01]} 36. g5 {[%clk 00:00:19]}
{[%emt 00:00:03]} d6 {[%clk 00:00:11]} {[%emt 00:00:05]} 37. cxd6 {[%clk
00:00:20]} {[%emt 00:00:05]} Rg8 {[%clk 00:00:10]} {[%emt 00:00:06]} 38. Kh1
{[%clk 00:00:19]} {[%emt 00:00:05]} Ng4 {[%clk 00:00:14]} {[%emt 00:00:02]} 39.
Qe4+ {[%clk 00:00:21]} {[%emt 00:00:03]} g6 {[%clk 00:00:08]} {[%emt 00:00:10]}
40. Qxg4 {[%clk 00:00:25]} {[%emt 00:00:02]} h5 {[%clk 00:00:11]} {[%emt
00:00:02]} 41. Rxf7+ {[%clk 00:00:27]} {[%emt 00:00:03]} Rg7 {[%clk 00:00:15]}
{[%emt 00:00:01]} 42. Rxg7+ {[%clk 00:00:30]} {[%emt 00:00:03]} Kh8 {[%clk
00:00:15]} {[%emt 00:00:04]} 43. Rc7+ {[%clk 00:00:28]} {[%emt 00:00:06]} 1-0

[Event "Open NK Rapid 2025 bord 26-50"]
[Site "Helmond, Netherlands"]
[Date "2025.05.03"]
[Round "5.19"]
[White "Jansen, Marijn"]
[Black "Nair, Pranav Prasobh"]
[Result "1/2-1/2"]
[TimeControl "15 min +5 sec increment"]
[WhiteFideId "1089587"]
[BlackFideId "40109135"]
[WhiteElo "1880"]
[BlackElo "1507"]

1. e4 {[%clk 00:15:05]} {[%emt 00:00:04]} e5 {[%clk 00:15:09]} {[%emt
00:00:01]} 2. Nf3 {[%clk 00:15:09]} {[%emt 00:00:01]} Nc6 {[%clk 00:15:13]}
{[%emt 00:00:01]} 3. Bc4 {[%clk 00:15:11]} {[%emt 00:00:02]} Nf6 {[%clk
00:15:16]} {[%emt 00:00:03]} 4. d3 {[%clk 00:15:15]} Bc5 {[%clk 00:15:16]}
{[%emt 00:00:05]} 5. c3 {[%clk 00:15:19]} {[%emt 00:00:01]} d6 {[%clk
00:15:15]} {[%emt 00:00:07]} 6. O-O {[%clk 00:15:20]} {[%emt 00:00:04]} h6
{[%clk 00:15:13]} {[%emt 00:00:07]} 7. Nbd2 {[%clk 00:15:18]} {[%emt 00:00:07]}
O-O {[%clk 00:15:14]} {[%emt 00:00:03]} 8. h3 {[%clk 00:15:20]} {[%emt
00:00:04]} Be6 {[%clk 00:15:05]} {[%emt 00:00:14]} 9. b4 {[%clk 00:15:24]}
{[%emt 00:00:01]} Bb6 {[%clk 00:15:05]} {[%emt 00:00:04]} 10. a4 {[%clk
00:15:28]} {[%emt 00:00:02]} a5 {[%clk 00:15:04]} {[%emt 00:00:05]} 11. b5
{[%clk 00:14:37]} {[%emt 00:00:56]} Ne7 {[%clk 00:15:05]} {[%emt 00:00:04]} 12.
Re1 {[%clk 00:14:33]} {[%emt 00:00:10]} Ng6 {[%clk 00:15:07]} {[%emt 00:00:03]}
13. Bxe6 {[%clk 00:14:14]} {[%emt 00:00:24]} fxe6 {[%clk 00:15:09]} {[%emt
00:00:03]} 14. Nc4 {[%clk 00:14:17]} {[%emt 00:00:02]} Re8 {[%clk 00:14:46]}
{[%emt 00:00:27]} 15. Nxb6 {[%clk 00:14:15]} {[%emt 00:00:08]} cxb6 {[%clk
00:14:50]} {[%emt 00:00:02]} 16. d4 {[%clk 00:13:59]} {[%emt 00:00:20]} exd4
{[%clk 00:13:56]} {[%emt 00:00:58]} 17. cxd4 {[%clk 00:13:21]} {[%emt
00:00:43]} Rc8 {[%clk 00:13:18]} {[%emt 00:00:43]} 18. Bb2 {[%clk 00:12:17]}
{[%emt 00:01:08]} Re7 {[%clk 00:12:47]} {[%emt 00:00:38]} 19. Qb3 {[%clk
00:11:28]} {[%emt 00:00:54]} Kh8 {[%clk 00:11:58]} {[%emt 00:00:53]} 20. Ba3
{[%clk 00:10:24]} {[%emt 00:01:09]} Re8 {[%clk 00:11:46]} {[%emt 00:00:17]} 21.
e5 {[%clk 00:10:04]} {[%emt 00:00:26]} dxe5 {[%clk 00:11:41]} {[%emt 00:00:10]}
22. dxe5 {[%clk 00:10:00]} {[%emt 00:00:09]} Nd5 {[%clk 00:11:42]} {[%emt
00:00:03]} 23. Rac1 {[%clk 00:09:31]} {[%emt 00:00:35]} Qd7 {[%clk 00:11:06]}
{[%emt 00:00:41]} 24. Bd6 {[%clk 00:09:14]} {[%emt 00:00:22]} Ngf4 {[%clk
00:10:37]} {[%emt 00:00:34]} 25. Kh2 {[%clk 00:08:22]} {[%emt 00:00:56]} Qf7
{[%clk 00:08:38]} {[%emt 00:02:04]} 26. g3 {[%clk 00:06:41]} {[%emt 00:01:47]}
Ng6 {[%clk 00:06:19]} {[%emt 00:02:24]} 27. Kg2 {[%clk 00:06:20]} {[%emt
00:00:26]} Qf5 {[%clk 00:05:24]} {[%emt 00:00:59]} 28. Rxc8 {[%clk 00:05:20]}
{[%emt 00:01:05]} Rxc8 {[%clk 00:05:26]} {[%emt 00:00:04]} 29. Nd4 {[%clk
00:05:24]} {[%emt 00:00:01]} Qf7 {[%clk 00:05:23]} {[%emt 00:00:08]} 30. Qb1
{[%clk 00:04:15]} {[%emt 00:01:13]} Rc4 {[%clk 00:05:09]} {[%emt 00:00:19]} 31.
Qb2 {[%clk 00:02:51]} {[%emt 00:01:30]} Rxa4 {[%clk 00:04:50]} {[%emt
00:00:23]} 32. Rc1 {[%clk 00:02:46]} {[%emt 00:00:10]} Qe8 {[%clk 00:03:07]}
{[%emt 00:01:47]} 33. h4 {[%clk 00:02:13]} {[%emt 00:00:39]} Nge7 {[%clk
00:02:08]} {[%emt 00:01:04]} 34. Nxe6 {[%clk 00:02:00]} {[%emt 00:00:19]} Nf5
{[%clk 00:02:06]} {[%emt 00:00:07]} 35. Nc7 {[%clk 00:01:29]} {[%emt 00:00:37]}
Nxc7 {[%clk 00:01:00]} {[%emt 00:01:11]} 36. Rxc7 {[%clk 00:01:32]} Nxh4+
{[%clk 00:00:51]} {[%emt 00:00:14]} 37. gxh4 {[%clk 00:01:11]} {[%emt
00:00:26]} Qg6+ {[%clk 00:00:54]} {[%emt 00:00:02]} 38. Kf1 {[%clk 00:01:09]}
{[%emt 00:00:06]} Qd3+ {[%clk 00:00:51]} {[%emt 00:00:09]} 39. Kg1 {[%clk
00:00:49]} {[%emt 00:00:26]} Rg4+ {[%clk 00:00:51]} {[%emt 00:00:04]} 40. Kh2
{[%clk 00:00:32]} {[%emt 00:00:21]} Qf3 {[%clk 00:00:33]} {[%emt 00:00:23]} 41.
Rc8+ {[%clk 00:00:27]} {[%emt 00:00:11]} Kh7 {[%clk 00:00:37]} 42. Qc2+ {[%clk
00:00:31]} {[%emt 00:00:01]} Re4 {[%clk 00:00:11]} {[%emt 00:00:31]} 43. Rc4
{[%clk 00:00:29]} {[%emt 00:00:07]} Qf4+ {[%clk 00:00:14]} {[%emt 00:00:02]} 44.
Kg1 {[%clk 00:00:32]} {[%emt 00:00:01]} Qg4+ {[%clk 00:00:17]} {[%emt
00:00:03]} 45. Kf1 {[%clk 00:00:14]} {[%emt 00:00:20]} Qh3+ {[%clk 00:00:20]}
{[%emt 00:00:05]} 46. Kg1 {[%clk 00:00:18]} {[%emt 00:00:01]} Qg4+ {[%clk
00:00:24]} 47. Kf1 {[%clk 00:00:22]} Qh3+ {[%clk 00:00:28]} {[%emt 00:00:01]}
1/2-1/2

[Event "Open NK Rapid 2025 bord 26-50"]
[Site "Helmond, Netherlands"]
[Date "2025.05.03"]
[Round "5.20"]
[White "Kshirsagar, Pranav"]
[Black "Lukin, Yesenia"]
[Result "1-0"]
[TimeControl "15 min +5 sec increment"]
[WhiteFideId "1084011"]
[BlackFideId "273023"]
[WhiteElo "2049"]
[BlackElo "1597"]

1. d4 {[%clk 00:15:10]} Nf6 {[%emt 00:00:07]} 2. c4 {[%clk 00:15:14]} e6 {[%clk
00:15:09]} {[%emt 00:00:01]} 3. Nf3 {[%clk 00:15:18]} {[%emt 00:00:01]} d5
{[%clk 00:15:13]} 4. Nc3 {[%clk 00:15:22]} {[%emt 00:00:01]} c6 {[%clk
00:15:15]} {[%emt 00:00:03]} 5. e3 {[%clk 00:15:25]} {[%emt 00:00:01]} Bd6
{[%clk 00:15:18]} {[%emt 00:00:02]} 6. Be2 {[%clk 00:15:29]} {[%emt 00:00:01]}
Nbd7 {[%clk 00:15:22]} {[%emt 00:00:02]} 7. O-O {[%clk 00:15:32]} {[%emt
00:00:01]} O-O {[%clk 00:15:25]} {[%emt 00:00:03]} 8. b3 {[%clk 00:15:36]} Re8
{[%clk 00:15:25]} {[%emt 00:00:04]} 9. Bb2 {[%clk 00:15:39]} {[%emt 00:00:02]}
dxc4 {[%clk 00:15:18]} {[%emt 00:00:12]} 10. bxc4 {[%clk 00:15:43]} {[%emt
00:00:01]} e5 {[%clk 00:15:21]} {[%emt 00:00:02]} 11. d5 {[%clk 00:15:29]}
{[%emt 00:00:19]} cxd5 {[%clk 00:15:11]} {[%emt 00:00:16]} 12. cxd5 {[%clk
00:15:32]} {[%emt 00:00:01]} Nb6 {[%clk 00:14:55]} {[%emt 00:00:21]} 13. e4
{[%clk 00:15:22]} {[%emt 00:00:15]} a6 {[%clk 00:14:31]} {[%emt 00:00:29]} 14.
a4 {[%clk 00:15:17]} {[%emt 00:00:09]} Ng4 {[%clk 00:13:48]} {[%emt 00:00:48]}
15. h3 {[%clk 00:14:12]} {[%emt 00:01:10]} Nh6 {[%clk 00:13:51]} {[%emt
00:00:02]} 16. Nd2 {[%clk 00:14:05]} {[%emt 00:00:12]} f6 {[%clk 00:13:48]}
{[%emt 00:00:09]} 17. a5 {[%clk 00:14:06]} {[%emt 00:00:04]} Nd7 {[%clk
00:13:33]} {[%emt 00:00:20]} 18. Nc4 {[%clk 00:14:10]} {[%emt 00:00:02]} Nf7
{[%clk 00:13:12]} {[%emt 00:00:26]} 19. Bg4 {[%clk 00:12:03]} {[%emt 00:02:11]}
Nc5 {[%clk 00:12:48]} {[%emt 00:00:30]} 20. Ba3 {[%clk 00:11:27]} {[%emt
00:00:40]} Bxg4 {[%clk 00:12:18]} {[%emt 00:00:36]} 21. Qxg4 {[%clk 00:11:23]}
{[%emt 00:00:08]} Nd3 {[%clk 00:12:03]} {[%emt 00:00:20]} 22. Nb6 {[%clk
00:10:36]} {[%emt 00:00:52]} Ra7 {[%clk 00:11:24]} {[%emt 00:00:45]} 23. Rfd1
{[%clk 00:09:17]} {[%emt 00:01:23]} Bxa3 {[%clk 00:11:10]} {[%emt 00:00:19]} 24.
Rxa3 {[%clk 00:09:21]} Nf4 {[%clk 00:11:14]} {[%emt 00:00:01]} 25. g3 {[%clk
00:08:54]} {[%emt 00:00:32]} Nh6 {[%clk 00:10:58]} {[%emt 00:00:21]} 26. Qd7
{[%clk 00:08:11]} {[%emt 00:00:48]} Qxd7 {[%clk 00:10:50]} {[%emt 00:00:13]} 27.
Nxd7 {[%clk 00:08:15]} {[%emt 00:00:01]} Nxh3+ {[%clk 00:10:47]} {[%emt
00:00:08]} 28. Kg2 {[%clk 00:08:20]} Ng5 {[%clk 00:10:44]} {[%emt 00:00:08]} 29.
Nb6 {[%clk 00:07:58]} {[%emt 00:00:26]} f5 {[%clk 00:10:24]} {[%emt 00:00:25]}
30. d6 {[%clk 00:07:41]} {[%emt 00:00:22]} fxe4 {[%clk 00:10:05]} {[%emt
00:00:24]} 31. d7 {[%clk 00:07:36]} {[%emt 00:00:10]} Rd8 {[%clk 00:10:07]}
{[%emt 00:00:03]} 32. Ra4 {[%clk 00:06:40]} {[%emt 00:01:01]} Ng4 {[%emt
00:02:00]} 33. Nxe4 {[%clk 00:06:25]} {[%emt 00:00:20]} Ne6 {[%clk 00:07:33]}
{[%emt 00:00:45]} 34. Nd6 {[%clk 00:05:37]} {[%emt 00:00:52]} Nf6 {[%emt
00:00:39]} 35. Ndc8 {[%clk 00:05:37]} {[%emt 00:00:04]} Nc5 {[%clk 00:06:44]}
{[%emt 00:00:22]} 36. Rc4 {[%clk 00:05:21]} {[%emt 00:00:20]} Ncxd7 {[%clk
00:06:20]} {[%emt 00:00:29]} 37. Nxa7 {[%clk 00:05:22]} {[%emt 00:00:04]} Kf7
{[%clk 00:06:20]} {[%emt 00:00:05]} 38. Nxd7 {[%clk 00:05:20]} {[%emt
00:00:07]} Rxd7 {[%clk 00:06:20]} {[%emt 00:00:05]} 39. Rxd7+ {[%clk 00:05:23]}
{[%emt 00:00:02]} Nxd7 {[%clk 00:06:24]} 40. Rc7 {[%clk 00:05:27]} {[%emt
00:00:01]} Ke6 {[%emt 00:00:02]} 41. Rxb7 {[%clk 00:05:29]} {[%emt 00:00:01]}
1-0